[Event "*** Titled Tuesday Blitz"]
[Site "Chess.com"]
[Date "2020.05.12"]
[Round "9"]
[White "artooon"]
[Black "Msb2"]
[Result "0-1"]
[WhiteElo "2730"]
[BlackElo "2903"]
[TimeControl "180+1"]
[EndTime "11:41:44 PDT"]
[Termination "Msb2 won by checkmate"]

1. e4 {[%clk 0:03:00.9]} 1... e6 {[%clk 0:02:58.7]} 2. d4 {[%clk 0:03:00.6]}
2... d5 {[%clk 0:02:58.5]} 3. Nd2 {[%clk 0:03:01.1]} 3... c5 {[%clk 0:02:58.3]}
4. c3 {[%clk 0:03:01.4]} 4... cxd4 {[%clk 0:02:56.9]} 5. cxd4 {[%clk 0:03:02.3]}
5... dxe4 {[%clk 0:02:50.8]} 6. Nxe4 {[%clk 0:03:03.2]} 6... Nf6 {[%clk
0:02:51.4]} 7. Nxf6+ {[%clk 0:03:02.8]} 7... Qxf6 {[%clk 0:02:51.7]} 8. Nf3
{[%clk 0:03:03.7]} 8... Bb4+ {[%clk 0:02:48.9]} 9. Bd2 {[%clk 0:03:03.5]} 9...
Bxd2+ {[%clk 0:02:49]} 10. Qxd2 {[%clk 0:03:04.4]} 10... Bd7 {[%clk 0:02:48.3]}
11. Qb4 {[%clk 0:03:02.5]} 11... Bc6 {[%clk 0:02:46]} 12. Ne5 {[%clk 0:03:01.7]}
12... Qe7 {[%clk 0:02:43.8]} 13. Qxe7+ {[%clk 0:02:59.5]} 13... Kxe7 {[%clk
0:02:44.7]} 14. Rc1 {[%clk 0:03:00.1]} 14... Rd8 {[%clk 0:02:42.8]} 15. Rd1
{[%clk 0:02:45.9]} 15... f6 {[%clk 0:02:21.9]} 16. Nc4 {[%clk 0:02:40.4]} 16...
Bd5 {[%clk 0:02:22.1]} 17. Ne3 {[%clk 0:02:38.2]} 17... Bxa2 {[%clk 0:02:20.3]}
18. Ra1 {[%clk 0:02:34]} 18... Bd5 {[%clk 0:02:19]} 19. Bd3 {[%clk 0:02:34.3]}
19... Nc6 {[%clk 0:02:16.1]} 20. O-O {[%clk 0:02:32.5]} 20... Nxd4 {[%clk
0:02:14.3]} 21. Bxh7 {[%clk 0:02:32.7]} 21... Bc6 {[%clk 0:02:07.4]} 22. Rfd1
{[%clk 0:02:30.2]} 22... f5 {[%clk 0:02:03.2]} 23. Kh1 {[%clk 0:02:23.9]} 23...
Kf6 {[%clk 0:02:00.3]} 24. Rd2 {[%clk 0:02:19.7]} 24... Nb3 {[%clk 0:01:53.3]}
25. Rxd8 {[%clk 0:02:16.5]} 25... Rxd8 {[%clk 0:01:54.2]} 26. Ra3 {[%clk
0:02:17.4]} 26... Nc5 {[%clk 0:01:48.4]} 27. Rc3 {[%clk 0:02:07.6]} 27... Ne4
{[%clk 0:01:47.3]} 28. Rc2 {[%clk 0:02:06.5]} 28... Ng5 {[%clk 0:01:44.3]} 29.
h4 {[%clk 0:02:05]} 29... Nxh7 {[%clk 0:01:44.5]} 30. Kh2 {[%clk 0:02:05.9]}
30... Nf8 {[%clk 0:01:40.7]} 31. f4 {[%clk 0:02:05.5]} 31... Ng6 {[%clk
0:01:39.5]} 32. Re2 {[%clk 0:02:06.4]} 32... Nxf4 {[%clk 0:01:39.2]} 33. Rf2
{[%clk 0:02:06.7]} 33... Nd3 {[%clk 0:01:35.3]} 34. Rf1 {[%clk 0:02:05.8]} 34...
Rd4 {[%clk 0:01:35]} 35. Nc2 {[%clk 0:02:05.3]} 35... Rxh4+ {[%clk 0:01:34.4]}
36. Kg1 {[%clk 0:02:05]} 36... Rg4 {[%clk 0:01:34.7]} 37. Ne3 {[%clk 0:02:05.5]}
37... Rg3 {[%clk 0:01:35]} 38. Re1 {[%clk 0:02:04]} 38... Nxe1 {[%clk
0:01:34.8]} 39. Kf2 {[%clk 0:02:03.4]} 39... Rxe3 {[%clk 0:01:34.4]} 40. Kxe3
{[%clk 0:02:03]} 40... Nxg2+ {[%clk 0:01:34.5]} 41. Kd4 {[%clk 0:02:03.9]} 41...
e5+ {[%clk 0:01:34]} 42. Kc5 {[%clk 0:02:03.8]} 42... e4 {[%clk 0:01:34.4]} 43.
b4 {[%clk 0:02:04.7]} 43... a6 {[%clk 0:01:33.7]} 44. b5 {[%clk 0:02:05.6]}
44... axb5 {[%clk 0:01:34.4]} 45. Kb4 {[%clk 0:02:06.1]} 45... e3 {[%clk
0:01:34.5]} 46. Ka5 {[%clk 0:02:07]} 46... e2 {[%clk 0:01:34.7]} 47. Kb6 {[%clk
0:02:07.9]} 47... e1=B {[%clk 0:01:32.9]} 48. Kc5 {[%clk 0:02:08.8]} 48... f4
{[%clk 0:01:32.9]} 49. Kd6 {[%clk 0:02:09.7]} 49... f3 {[%clk 0:01:33.3]} 50.
Kc7 {[%clk 0:02:10.6]} 50... f2 {[%clk 0:01:33.6]} 51. Kc8 {[%clk 0:02:11.5]}
51... f1=B {[%clk 0:01:32.6]} 52. Kb8 {[%clk 0:02:12.4]} 52... g5 {[%clk
0:01:32.7]} 53. Ka8 {[%clk 0:02:13.3]} 53... g4 {[%clk 0:01:33.6]} 54. Kb8
{[%clk 0:02:13.3]} 54... g3 {[%clk 0:01:34.5]} 55. Kc8 {[%clk 0:02:14.2]} 55...
Nf4 {[%clk 0:01:35.4]} 56. Kc7 {[%clk 0:02:15.1]} 56... b4 {[%clk 0:01:36.3]}
57. Kb6 {[%clk 0:02:16]} 57... b3 {[%clk 0:01:37.2]} 58. Ka7 {[%clk 0:02:16.8]}
58... b2 {[%clk 0:01:38.1]} 59. Kb8 {[%clk 0:02:17.7]} 59... g2 {[%clk 0:01:39]}
60. Ka8 {[%clk 0:02:18.6]} 60... g1=B {[%clk 0:01:36.6]} 61. Kb8 {[%clk
0:02:19.5]} 61... b1=Q {[%clk 0:01:35.7]} 62. Ka8 {[%clk 0:02:20.4]} 62... Qh7
{[%clk 0:01:32.1]} 63. Kb8 {[%clk 0:02:21.3]} 63... b5 {[%clk 0:01:29.4]} 64.
Kc8 {[%clk 0:02:20.9]} 64... Qe7 {[%clk 0:01:28.7]} 65. Kb8 {[%clk 0:02:20.5]}
65... b4 {[%clk 0:01:29.6]} 66. Kc8 {[%clk 0:02:20.5]} 66... b3 {[%clk
0:01:30.5]} 67. Kb8 {[%clk 0:02:21.4]} 67... b2 {[%clk 0:01:31.4]} 68. Kc8
{[%clk 0:02:22.3]} 68... Bb6 {[%clk 0:01:25.8]} 69. Kb8 {[%clk 0:02:21.6]} 69...
Nd5 {[%clk 0:01:21.3]} 70. Kc8 {[%clk 0:02:22.5]} 70... b1=N {[%clk 0:01:17.5]}
71. Kb8 {[%clk 0:02:23.4]} 71... Nbc3 {[%clk 0:01:14.8]} 72. Kc8 {[%clk
0:02:24.3]} 72... Nb5 {[%clk 0:01:14.3]} 73. Kb8 {[%clk 0:02:25.2]} 73... Nb4
{[%clk 0:01:13.4]} 74. Kc8 {[%clk 0:02:26.1]} 74... Nd6+ {[%clk 0:01:13.8]} 75.
Kb8 {[%clk 0:02:27]} 75... Na6# {[%clk 0:01:14.5]} 0-1

[Event "*** Titled Tuesday Blitz"]
[Site "Chess.com"]
[Date "2020.05.12"]
[Round "9"]
[White "Indianlad"]
[Black "Abund"]
[Result "1-0"]
[WhiteElo "2920"]
[BlackElo "2627"]
[TimeControl "180+1"]
[EndTime "11:41:45 PDT"]
[Termination "Indianlad won on time"]

1. Nf3 {[%clk 0:03:00.9]} 1... Nf6 {[%clk 0:02:59.7]} 2. b3 {[%clk 0:03:00.2]}
2... g6 {[%clk 0:02:59.9]} 3. Bb2 {[%clk 0:03:00.6]} 3... Bg7 {[%clk 0:03:00.5]}
4. e3 {[%clk 0:03:01.2]} 4... O-O {[%clk 0:03:00.7]} 5. c4 {[%clk 0:03:01.9]}
5... c5 {[%clk 0:02:58.2]} 6. Be2 {[%clk 0:03:02.1]} 6... b6 {[%clk 0:02:56]} 7.
O-O {[%clk 0:03:02.3]} 7... Bb7 {[%clk 0:02:56.3]} 8. Nc3 {[%clk 0:03:03]} 8...
d5 {[%clk 0:02:53.4]} 9. cxd5 {[%clk 0:03:03.1]} 9... Nxd5 {[%clk 0:02:52.6]}
10. Qc1 {[%clk 0:03:03.7]} 10... Nb4 {[%clk 0:02:45.6]} 11. d4 {[%clk 0:03:02]}
11... cxd4 {[%clk 0:02:45]} 12. Nxd4 {[%clk 0:03:02.2]} 12... N8c6 {[%clk
0:02:45.3]} 13. Nxc6 {[%clk 0:03:01.8]} 13... Nxc6 {[%clk 0:02:41.3]} 14. Rd1
{[%clk 0:03:02]} 14... Qe8 {[%clk 0:02:32.3]} 15. Nd5 {[%clk 0:02:55.7]} 15...
Rc8 {[%clk 0:02:32]} 16. Bxg7 {[%clk 0:02:55.2]} 16... Kxg7 {[%clk 0:02:31.9]}
17. Qb2+ {[%clk 0:02:55.9]} 17... f6 {[%clk 0:02:32.2]} 18. Bg4 {[%clk
0:02:56.2]} 18... e6 {[%clk 0:01:00.1]} 19. Nf4 {[%clk 0:02:48.8]} 19... Nd8
{[%clk 0:00:56.4]} 20. Rxd8 {[%clk 0:02:48.2]} 20... Rxd8 {[%clk 0:00:55.8]} 21.
Nxe6+ {[%clk 0:02:48.8]} 21... Kg8 {[%clk 0:00:46.5]} 22. Nxd8 {[%clk
0:02:43.6]} 22... Qxd8 {[%clk 0:00:46.5]} 23. Rd1 {[%clk 0:02:43.7]} 23... Qc7
{[%clk 0:00:40]} 24. h4 {[%clk 0:02:37.4]} 24... f5 {[%clk 0:00:22.7]} 25. Be2
{[%clk 0:02:35.7]} 25... h6 {[%clk 0:00:11.8]} 26. Bc4+ {[%clk 0:02:00.1]} 26...
Kh7 {[%clk 0:00:11.8]} 27. Qd4 {[%clk 0:02:00.8]} 27... Bc6 {[%clk 0:00:11.5]}
28. Qd6 {[%clk 0:01:57.5]} 28... Qxd6 {[%clk 0:00:09.7]} 29. Rxd6 {[%clk
0:01:58.4]} 29... Rc8 {[%clk 0:00:06.3]} 30. h5 {[%clk 0:01:55.7]} 30... g5
{[%clk 0:00:05.5]} 31. Be6 {[%clk 0:01:56.2]} 31... Rc7 {[%clk 0:00:04.8]} 32.
Bxf5+ {[%clk 0:01:56.8]} 32... Kg7 {[%clk 0:00:05.2]} 33. Rg6+ {[%clk
0:01:57.5]} 33... Kf7 {[%clk 0:00:05.6]} 34. Rxh6 {[%clk 0:01:58.1]} 34... Kg8
{[%clk 0:00:05.3]} 35. Rg6+ {[%clk 0:01:58.1]} 35... Kf8 {[%clk 0:00:05.8]} 36.
Rxg5 {[%clk 0:01:58.3]} 36... Be8 {[%clk 0:00:06]} 37. h6 {[%clk 0:01:58.4]}
37... Bd7 {[%clk 0:00:02.4]} 38. h7 {[%clk 0:01:58.1]} 1-0

[Event "*** Titled Tuesday Blitz"]
[Site "Chess.com"]
[Date "2020.05.12"]
[Round "9"]
[White "GMKrikor"]
[Black "GameOverBro"]
[Result "0-1"]
[WhiteElo "2781"]
[BlackElo "2515"]
[TimeControl "180+1"]
[EndTime "11:41:45 PDT"]
[Termination "GameOverBro won by resignation"]

1. e4 {[%clk 0:02:52.2]} 1... d6 {[%clk 0:03:00.9]} 2. d4 {[%clk 0:02:50.5]}
2... Nf6 {[%clk 0:03:01.3]} 3. Nc3 {[%clk 0:02:50.7]} 3... e5 {[%clk 0:03:01.7]}
4. Nf3 {[%clk 0:02:50.3]} 4... Nbd7 {[%clk 0:03:01.5]} 5. Bc4 {[%clk 0:02:50.2]}
5... Be7 {[%clk 0:03:02]} 6. O-O {[%clk 0:02:50.2]} 6... h6 {[%clk 0:03:02.1]}
7. Re1 {[%clk 0:02:48.2]} 7... c6 {[%clk 0:03:02.6]} 8. a4 {[%clk 0:02:45.3]}
8... Qc7 {[%clk 0:03:03.1]} 9. Be3 {[%clk 0:02:38.6]} 9... Nf8 {[%clk
0:03:03.5]} 10. a5 {[%clk 0:02:36.5]} 10... Ng6 {[%clk 0:03:03.7]} 11. h3 {[%clk
0:02:30.6]} 11... O-O {[%clk 0:03:03.3]} 12. Qd2 {[%clk 0:02:26.7]} 12... Kh7
{[%clk 0:03:03.8]} 13. Bf1 {[%clk 0:01:22.8]} 13... Bd7 {[%clk 0:03:03.2]} 14.
b4 {[%clk 0:01:17.2]} 14... Rad8 {[%clk 0:03:02.8]} 15. d5 {[%clk 0:01:10]}
15... cxd5 {[%clk 0:02:52.5]} 16. Nxd5 {[%clk 0:01:09.5]} 16... Nxd5 {[%clk
0:02:48.7]} 17. exd5 {[%clk 0:01:10.4]} 17... Ra8 {[%clk 0:02:28.9]} 18. c4
{[%clk 0:01:06.7]} 18... f5 {[%clk 0:02:28]} 19. Qd1 {[%clk 0:00:59.6]} 19... f4
{[%clk 0:02:27]} 20. Bc1 {[%clk 0:00:55.4]} 20... Bf5 {[%clk 0:02:24.8]} 21. Bd3
{[%clk 0:00:44.7]} 21... Rac8 {[%clk 0:02:23.9]} 22. Bxf5 {[%clk 0:00:43.3]}
22... Rxf5 {[%clk 0:02:24.1]} 23. Nd2 {[%clk 0:00:44]} 23... f3 {[%clk 0:02:22]}
24. g3 {[%clk 0:00:33.9]} 24... Qd7 {[%clk 0:02:21.6]} 25. Ra3 {[%clk 0:00:29]}
25... Bg5 {[%clk 0:02:19.4]} 26. Rxf3 {[%clk 0:00:17.9]} 26... Bxd2 {[%clk
0:02:06.3]} 27. Bxd2 {[%clk 0:00:18.8]} 27... Rxc4 {[%clk 0:02:04.5]} 28. Be3
{[%clk 0:00:14.2]} 28... Rxf3 {[%clk 0:02:01.6]} 29. Qxf3 {[%clk 0:00:14.1]}
29... Qxh3 {[%clk 0:01:58.8]} 30. b5 {[%clk 0:00:09.6]} 30... e4 {[%clk
0:01:54.6]} 31. Qg2 {[%clk 0:00:05.6]} 31... Qf5 {[%clk 0:01:48.1]} 32. Bxa7
{[%clk 0:00:05.2]} 32... Qxd5 {[%clk 0:01:48.2]} 33. a6 {[%clk 0:00:04.4]} 33...
Qxb5 {[%clk 0:01:46.2]} 34. Rxe4 {[%clk 0:00:02.9]} 34... Qb1+ {[%clk
0:01:45.9]} 35. Kh2 {[%clk 0:00:02.6]} 35... Rxe4 {[%clk 0:01:43.9]} 36. Qxe4
{[%clk 0:00:03.5]} 36... Qxe4 {[%clk 0:01:43.4]} 0-1

[Event "*** Titled Tuesday Blitz"]
[Site "Chess.com"]
[Date "2020.05.12"]
[Round "9"]
[White "124chess"]
[Black "FLamps8"]
[Result "1-0"]
[WhiteElo "2789"]
[BlackElo "2589"]
[TimeControl "180+1"]
[EndTime "11:41:49 PDT"]
[Termination "124chess won by resignation"]

1. d4 {[%clk 0:03:00.9]} 1... d5 {[%clk 0:02:59.7]} 2. Nf3 {[%clk 0:03:01.2]}
2... Nf6 {[%clk 0:02:59.3]} 3. c3 {[%clk 0:03:01.8]} 3... e6 {[%clk 0:02:55.3]}
4. Bf4 {[%clk 0:03:01.4]} 4... Bd6 {[%clk 0:02:54.8]} 5. Bg3 {[%clk 0:03:01.5]}
5... c5 {[%clk 0:02:53.2]} 6. e3 {[%clk 0:03:02]} 6... Qe7 {[%clk 0:02:51.5]} 7.
Nbd2 {[%clk 0:03:01.8]} 7... Nbd7 {[%clk 0:02:51.3]} 8. Ne5 {[%clk 0:02:57.9]}
8... O-O {[%clk 0:02:36.9]} 9. Bd3 {[%clk 0:02:56.3]} 9... Bxe5 {[%clk
0:02:28.9]} 10. dxe5 {[%clk 0:02:54.1]} 10... Ne8 {[%clk 0:02:29.2]} 11. Qh5
{[%clk 0:02:50]} 11... g6 {[%clk 0:02:28.3]} 12. Qh6 {[%clk 0:02:49.9]} 12... f6
{[%clk 0:02:24.1]} 13. Nf3 {[%clk 0:02:35.7]} 13... Qg7 {[%clk 0:01:58]} 14.
Qxg7+ {[%clk 0:02:35.2]} 14... Kxg7 {[%clk 0:01:58.9]} 15. O-O {[%clk
0:02:34.7]} 15... f5 {[%clk 0:01:53.9]} 16. c4 {[%clk 0:02:34.4]} 16... Nb6
{[%clk 0:01:50.9]} 17. cxd5 {[%clk 0:02:32.9]} 17... Nxd5 {[%clk 0:01:51.4]} 18.
Rac1 {[%clk 0:02:12.2]} 18... b6 {[%clk 0:01:48.9]} 19. e4 {[%clk 0:02:12.2]}
19... fxe4 {[%clk 0:01:45.1]} 20. Bxe4 {[%clk 0:02:12.4]} 20... Bb7 {[%clk
0:01:44.8]} 21. Rfd1 {[%clk 0:02:08.1]} 21... Nec7 {[%clk 0:01:43.5]} 22. h4
{[%clk 0:02:04.6]} 22... Rad8 {[%clk 0:01:36.9]} 23. h5 {[%clk 0:02:02.5]} 23...
Ba8 {[%clk 0:01:22.9]} 24. hxg6 {[%clk 0:02:00.6]} 24... hxg6 {[%clk 0:01:23.8]}
25. Ng5 {[%clk 0:01:41.2]} 25... Rd7 {[%clk 0:00:20.5]} 26. Bf3 {[%clk 0:01:40]}
26... Re7 {[%clk 0:00:15.4]} 27. Bh4 {[%clk 0:01:38.3]} 27... Nf4 {[%clk
0:00:14.1]} 28. Bxa8 {[%clk 0:01:34.4]} 28... Ne2+ {[%clk 0:00:13.9]} 29. Kf1
{[%clk 0:01:31.4]} 29... Nxc1 {[%clk 0:00:14.4]} 30. Ne4 {[%clk 0:01:29.5]}
30... Rxa8 {[%clk 0:00:12.5]} 31. Bxe7 {[%clk 0:01:29]} 31... Nd5 {[%clk
0:00:13]} 32. Bf6+ {[%clk 0:01:28.5]} 32... Kf7 {[%clk 0:00:13]} 33. Rxc1 {[%clk
0:01:28.4]} 33... Rh8 {[%clk 0:00:13.9]} 34. Bxh8 {[%clk 0:01:28]} 1-0

[Event "*** Titled Tuesday Blitz"]
[Site "Chess.com"]
[Date "2020.05.12"]
[Round "9"]
[White "Luibov_AN"]
[Black "vladimir_petrov"]
[Result "0-1"]
[WhiteElo "2126"]
[BlackElo "2319"]
[TimeControl "180+1"]
[EndTime "11:41:57 PDT"]
[Termination "vladimir_petrov won by resignation"]

1. d4 {[%clk 0:02:56.6]} 1... Nf6 {[%clk 0:02:59.2]} 2. Nf3 {[%clk 0:02:55.9]}
2... e6 {[%clk 0:02:59.3]} 3. c4 {[%clk 0:02:50.7]} 3... b6 {[%clk 0:02:57.6]}
4. Nc3 {[%clk 0:02:48.9]} 4... Bb4 {[%clk 0:02:55.3]} 5. Qc2 {[%clk 0:02:46.7]}
5... Bb7 {[%clk 0:02:54.4]} 6. Bd2 {[%clk 0:02:44.3]} 6... O-O {[%clk
0:02:53.5]} 7. g3 {[%clk 0:02:43.9]} 7... Nc6 {[%clk 0:02:47.5]} 8. Bg2 {[%clk
0:02:43.5]} 8... Nxd4 {[%clk 0:02:47.2]} 9. Qa4 {[%clk 0:02:39.6]} 9... Nxf3+
{[%clk 0:02:43.3]} 10. exf3 {[%clk 0:02:39.3]} 10... a5 {[%clk 0:02:27]} 11. O-O
{[%clk 0:02:38.6]} 11... d5 {[%clk 0:02:25.3]} 12. a3 {[%clk 0:02:36.7]} 12...
Bc5 {[%clk 0:02:17.9]} 13. cxd5 {[%clk 0:02:33.6]} 13... Nxd5 {[%clk 0:02:18.5]}
14. Ne4 {[%clk 0:02:28.3]} 14... Bd6 {[%clk 0:01:50.3]} 15. Qc2 {[%clk
0:02:25.3]} 15... Qe7 {[%clk 0:01:40.1]} 16. Rfe1 {[%clk 0:02:23.9]} 16... Nf6
{[%clk 0:01:36.1]} 17. Bg5 {[%clk 0:02:20.5]} 17... Bxe4 {[%clk 0:00:34.5]} 18.
fxe4 {[%clk 0:02:14.3]} 18... Be5 {[%clk 0:00:34.4]} 19. Be3 {[%clk 0:02:04.3]}
19... Ng4 {[%clk 0:00:31.6]} 20. Bc1 {[%clk 0:02:01.7]} 20... Bd4 {[%clk
0:00:29.7]} 21. Re2 {[%clk 0:01:56.6]} 21... e5 {[%clk 0:00:28.2]} 22. h3 {[%clk
0:01:56.1]} 22... Nf6 {[%clk 0:00:26.4]} 23. Bg5 {[%clk 0:01:53.2]} 23... c5
{[%clk 0:00:25.3]} 24. Kh2 {[%clk 0:01:49.7]} 24... Ng4+ {[%clk 0:00:23.3]} 25.
hxg4 {[%clk 0:01:46.9]} 25... Qxg5 {[%clk 0:00:24.1]} 26. Bh3 {[%clk 0:01:41.5]}
26... Rad8 {[%clk 0:00:21.6]} 27. Rf1 {[%clk 0:01:41.3]} 27... Rd6 {[%clk
0:00:18.4]} 28. f4 {[%clk 0:01:41.2]} 28... exf4 {[%clk 0:00:17.7]} 29. gxf4
{[%clk 0:01:41.2]} 29... Qh4 {[%clk 0:00:18]} 30. g5 {[%clk 0:01:36.2]} 30... h6
{[%clk 0:00:17.1]} 31. Rg2 {[%clk 0:01:32.9]} 31... hxg5 {[%clk 0:00:16.2]} 32.
fxg5 {[%clk 0:01:27.9]} 32... Be5+ {[%clk 0:00:13.9]} 33. Kg1 {[%clk 0:01:22.9]}
33... Qxh3 {[%clk 0:00:13.9]} 0-1

[Event "*** Titled Tuesday Blitz"]
[Site "Chess.com"]
[Date "2020.05.12"]
[Round "9"]
[White "Kavyev_Ruslan"]
[Black "ChessBitl"]
[Result "1-0"]
[WhiteElo "2467"]
[BlackElo "2314"]
[TimeControl "180+1"]
[EndTime "11:41:59 PDT"]
[Termination "Kavyev_Ruslan won on time"]

1. d4 {[%clk 0:03:00.9]} 1... Nf6 {[%clk 0:02:59.3]} 2. c4 {[%clk 0:03:00.9]}
2... g6 {[%clk 0:02:59]} 3. Nc3 {[%clk 0:03:00.9]} 3... Bg7 {[%clk 0:02:59.5]}
4. e4 {[%clk 0:03:01.4]} 4... d6 {[%clk 0:03:00]} 5. Be2 {[%clk 0:03:02.2]} 5...
O-O {[%clk 0:03:00.2]} 6. Be3 {[%clk 0:03:03.1]} 6... e5 {[%clk 0:02:58.7]} 7.
d5 {[%clk 0:03:03.5]} 7... a5 {[%clk 0:02:58.2]} 8. g4 {[%clk 0:03:03]} 8... Na6
{[%clk 0:02:55.9]} 9. h4 {[%clk 0:03:03.1]} 9... Nc5 {[%clk 0:02:53.3]} 10. f3
{[%clk 0:03:00.8]} 10... h5 {[%clk 0:02:51]} 11. g5 {[%clk 0:03:00.4]} 11... Ne8
{[%clk 0:02:42.5]} 12. Qd2 {[%clk 0:02:58.6]} 12... a4 {[%clk 0:02:40.7]} 13.
Nh3 {[%clk 0:02:56.2]} 13... Bd7 {[%clk 0:02:33]} 14. Nf2 {[%clk 0:02:54.2]}
14... c6 {[%clk 0:02:32.8]} 15. dxc6 {[%clk 0:02:41.1]} 15... bxc6 {[%clk
0:02:31.6]} 16. Bxc5 {[%clk 0:02:26.5]} 16... dxc5 {[%clk 0:02:31]} 17. O-O-O
{[%clk 0:02:27.4]} 17... Ra7 {[%clk 0:02:24.3]} 18. Nd3 {[%clk 0:02:27.3]} 18...
Qe7 {[%clk 0:02:20.2]} 19. Qe3 {[%clk 0:02:27.3]} 19... Ra5 {[%clk 0:02:16.7]}
20. Kb1 {[%clk 0:02:19]} 20... Nc7 {[%clk 0:02:11.7]} 21. Bf1 {[%clk 0:02:17.8]}
21... Rb8 {[%clk 0:02:04.1]} 22. Bh3 {[%clk 0:02:17.6]} 22... Bxh3 {[%clk
0:02:01.6]} 23. Rxh3 {[%clk 0:02:18.5]} 23... Ne6 {[%clk 0:02:01.5]} 24. Rh2
{[%clk 0:02:16.9]} 24... Nd4 {[%clk 0:02:00.5]} 25. Ka1 {[%clk 0:02:09.2]} 25...
Ra7 {[%clk 0:01:53.3]} 26. a3 {[%clk 0:02:06.8]} 26... Nb3+ {[%clk 0:01:49.2]}
27. Ka2 {[%clk 0:02:06.8]} 27... Bf8 {[%clk 0:01:44.7]} 28. Nc1 {[%clk
0:02:06.9]} 28... Nd4 {[%clk 0:01:43.4]} 29. Rhd2 {[%clk 0:02:01.6]} 29... Qc7
{[%clk 0:01:38.6]} 30. Nd3 {[%clk 0:01:59.6]} 30... Bd6 {[%clk 0:01:28.7]} 31.
Ne2 {[%clk 0:01:54.4]} 31... Rab7 {[%clk 0:01:27.1]} 32. f4 {[%clk 0:01:52]}
32... exf4 {[%clk 0:01:20.9]} 33. Nexf4 {[%clk 0:01:52.9]} 33... Qa5 {[%clk
0:01:10.9]} 34. e5 {[%clk 0:01:50.9]} 34... Be7 {[%clk 0:01:07.9]} 35. e6 {[%clk
0:01:50.9]} 35... Qb6 {[%clk 0:00:47.8]} 36. exf7+ {[%clk 0:01:50.2]} 36... Kh7
{[%clk 0:00:42.9]} 37. Qe4 {[%clk 0:01:49.8]} 37... Qb3+ {[%clk 0:00:30.2]} 38.
Kb1 {[%clk 0:01:49.7]} 38... Nf5 {[%clk 0:00:17.4]} 39. Nxg6 {[%clk 0:01:45.7]}
39... Kxg6 {[%clk 0:00:10.2]} 40. Ne5+ {[%clk 0:01:45.7]} 40... Kg7 {[%clk
0:00:08.9]} 41. Qxf5 {[%clk 0:01:46.2]} 1-0

[Event "*** Titled Tuesday Blitz"]
[Site "Chess.com"]
[Date "2020.05.12"]
[Round "9"]
[White "KaterynaLagno"]
[Black "Jumbo"]
[Result "0-1"]
[WhiteElo "2691"]
[BlackElo "2836"]
[TimeControl "180+1"]
[EndTime "11:42:00 PDT"]
[Termination "Jumbo won by resignation"]

1. e4 {[%clk 0:03:00.9]} 1... e6 {[%clk 0:02:59.2]} 2. d4 {[%clk 0:03:00.3]}
2... d5 {[%clk 0:02:59.7]} 3. Nd2 {[%clk 0:03:00.7]} 3... c5 {[%clk 0:02:58]} 4.
exd5 {[%clk 0:03:00.7]} 4... Qxd5 {[%clk 0:02:58.9]} 5. Ngf3 {[%clk 0:03:00.9]}
5... cxd4 {[%clk 0:02:59]} 6. Bc4 {[%clk 0:03:00.7]} 6... Qd6 {[%clk 0:02:55.7]}
7. O-O {[%clk 0:03:00.1]} 7... Nc6 {[%clk 0:02:56.1]} 8. Nb3 {[%clk 0:03:00]}
8... Nf6 {[%clk 0:02:55.3]} 9. Nbxd4 {[%clk 0:02:53]} 9... Nxd4 {[%clk
0:02:54.8]} 10. Nxd4 {[%clk 0:02:53.9]} 10... a6 {[%clk 0:02:54.6]} 11. Re1
{[%clk 0:02:54.2]} 11... Qc7 {[%clk 0:02:52.9]} 12. Bf1 {[%clk 0:02:54]} 12...
Bd6 {[%clk 0:02:50.6]} 13. Nf5 {[%clk 0:02:53.6]} 13... Bxh2+ {[%clk 0:02:31.5]}
14. Kh1 {[%clk 0:02:53.8]} 14... O-O {[%clk 0:02:27.8]} 15. Nxg7 {[%clk
0:02:50.4]} 15... Kxg7 {[%clk 0:02:27.7]} 16. Qd2 {[%clk 0:02:47.2]} 16... Ng8
{[%clk 0:02:11.5]} 17. Qg5+ {[%clk 0:02:43.5]} 17... Kh8 {[%clk 0:02:11.2]} 18.
g3 {[%clk 0:02:41.4]} 18... f6 {[%clk 0:02:05.3]} 19. Qh4 {[%clk 0:02:16.6]}
19... Bxg3 {[%clk 0:02:03]} 20. fxg3 {[%clk 0:02:17.5]} 20... b5 {[%clk
0:01:26.2]} 21. Be3 {[%clk 0:01:56.2]} 21... Bb7+ {[%clk 0:01:23.9]} 22. Kg1
{[%clk 0:01:56.9]} 22... Rad8 {[%clk 0:01:13.1]} 23. Bd3 {[%clk 0:01:39.9]}
23... e5 {[%clk 0:01:08.9]} 24. Bf5 {[%clk 0:01:36.2]} 24... Rf7 {[%clk
0:01:04.9]} 25. Rad1 {[%clk 0:01:33.4]} 25... Rxd1 {[%clk 0:00:48.3]} 26. Rxd1
{[%clk 0:01:32.7]} 26... Qc6 {[%clk 0:00:48.8]} 27. Rd2 {[%clk 0:01:26]} 27...
Qf3 {[%clk 0:00:45.7]} 28. Rf2 {[%clk 0:00:35.8]} 28... Qxe3 {[%clk 0:00:43]}
0-1

[Event "*** Titled Tuesday Blitz"]
[Site "Chess.com"]
[Date "2020.05.12"]
[Round "9"]
[White "JonahWillow"]
[Black "mjray79"]
[Result "1-0"]
[WhiteElo "2667"]
[BlackElo "2282"]
[TimeControl "180+1"]
[EndTime "11:42:00 PDT"]
[Termination "JonahWillow won by checkmate"]

1. e4 {[%clk 0:03:00.9]} 1... e5 {[%clk 0:02:59.9]} 2. Nf3 {[%clk 0:03:00.4]}
2... Nc6 {[%clk 0:03:00.3]} 3. Nc3 {[%clk 0:03:00.1]} 3... Nf6 {[%clk
0:02:59.8]} 4. Bb5 {[%clk 0:03:00.2]} 4... Bb4 {[%clk 0:02:56.1]} 5. O-O {[%clk
0:02:59.4]} 5... O-O {[%clk 0:02:55.3]} 6. d3 {[%clk 0:02:59.5]} 6... d6 {[%clk
0:02:53.9]} 7. Bg5 {[%clk 0:02:59.4]} 7... Bxc3 {[%clk 0:02:51.8]} 8. bxc3
{[%clk 0:03:00.3]} 8... a6 {[%clk 0:02:48.1]} 9. Bc4 {[%clk 0:02:54.5]} 9... Be6
{[%clk 0:02:45.8]} 10. Bb3 {[%clk 0:02:43.3]} 10... a5 {[%clk 0:02:28.5]} 11.
Rb1 {[%clk 0:02:29.6]} 11... Rb8 {[%clk 0:02:17]} 12. Re1 {[%clk 0:02:26.5]}
12... b5 {[%clk 0:02:15]} 13. d4 {[%clk 0:02:23.9]} 13... h6 {[%clk 0:01:38.7]}
14. Bxf6 {[%clk 0:02:21.9]} 14... Qxf6 {[%clk 0:01:30.9]} 15. d5 {[%clk
0:02:13.1]} 15... a4 {[%clk 0:01:30.2]} 16. dxc6 {[%clk 0:02:05.4]} 16... axb3
{[%clk 0:01:28.5]} 17. axb3 {[%clk 0:02:06.3]} 17... Rb6 {[%clk 0:01:25]} 18.
Qd3 {[%clk 0:01:54.2]} 18... Rxc6 {[%clk 0:01:23.7]} 19. Ra1 {[%clk 0:01:51]}
19... Rb6 {[%clk 0:01:11.8]} 20. Ra7 {[%clk 0:01:44.4]} 20... c5 {[%clk
0:01:11.6]} 21. Rea1 {[%clk 0:01:42.9]} 21... c4 {[%clk 0:01:10.5]} 22. Qe3
{[%clk 0:01:40.7]} 22... Rc6 {[%clk 0:01:07.6]} 23. b4 {[%clk 0:01:39.6]} 23...
d5 {[%clk 0:01:03.1]} 24. exd5 {[%clk 0:01:29.5]} 24... Bxd5 {[%clk 0:01:04]}
25. Nxe5 {[%clk 0:01:24.5]} 25... Re6 {[%clk 0:01:01.5]} 26. f4 {[%clk
0:01:24.3]} 26... Qf5 {[%clk 0:00:55.9]} 27. Qf2 {[%clk 0:01:14.9]} 27... Be4
{[%clk 0:00:46.1]} 28. g4 {[%clk 0:01:08.8]} 28... Qh7 {[%clk 0:00:45.2]} 29.
Re1 {[%clk 0:01:04.1]} 29... f5 {[%clk 0:00:39.1]} 30. Qd4 {[%clk 0:01:00.1]}
30... Bxc2 {[%clk 0:00:35.6]} 31. Qd7 {[%clk 0:00:57.1]} 31... Rfe8 {[%clk
0:00:31.3]} 32. Qxe6+ {[%clk 0:00:55.4]} 32... Rxe6 {[%clk 0:00:28.7]} 33. Ra8+
{[%clk 0:00:54.7]} 33... Re8 {[%clk 0:00:29.6]} 34. Rxe8# {[%clk 0:00:55.4]} 1-0